[Event "Chessable Masters - Torneo preliminare"]
[White "Cuenca Jimenez, Jose Fernando"]
[Black "Vasquez Schroeder, Rodrigo"]
[WhiteFideId "2255570"]
[BlackFideId "3400042"]
[WhiteElo "2455"]
[BlackElo "2589"]
[Result "0-1"]
[Round "7"]
[TimeControl "600+2"]
[Date "2023.03.13"]
[WhiteClock "0:00:55"]
[BlackClock "0:05:51"]

1. d4 {[%clk 0:10:01]}  d5 {[%clk 0:10:00]} 2. c4 {[%clk 0:10:02]}  c6 {[%clk 0:10:01]} 3. Nc3 {[%clk 0:09:55]}  Nf6 {[%clk 0:10:02]} 4. e3 {[%clk 0:09:56]}  e6 {[%clk 0:10:02]} 5. Nf3 {[%clk 0:09:32]}  Nbd7 {[%clk 0:10:02]} 6. Bd3 {[%clk 0:09:31]}  dxc4 {[%clk 0:10:03]} 7. Bxc4 {[%clk 0:09:33]}  b5 {[%clk 0:10:04]} 8. Bd3 {[%clk 0:09:32]}  b4 {[%clk 0:10:06]} 9. Na4 {[%clk 0:09:22]}  Bb7 {[%clk 0:10:05]} 10. Qe2 {[%clk 0:09:08]}  a6 {[%clk 0:09:54]} 11. e4 {[%clk 0:08:32]}  c5 {[%clk 0:09:53]} 12. Bg5 {[%clk 0:08:24]}  cxd4 {[%clk 0:09:36]} 13. e5 {[%clk 0:08:19]}  Bxf3 {[%clk 0:09:33]} 14. gxf3 {[%clk 0:07:58]}  Qa5 {[%clk 0:09:28]} 15. exf6 {[%clk 0:07:34]}  Qxg5 {[%clk 0:09:21]} 16. Bxa6 {[%clk 0:07:27]}  Nxf6 {[%clk 0:09:00]} 17. Bb5+ {[%clk 0:07:20]}  Ke7 {[%clk 0:09:00]} 18. Qc4 {[%clk 0:06:54]}  Qe5+ {[%clk 0:08:05]} 19. Kf1 {[%clk 0:06:40]}  Nd5 {[%clk 0:07:58]} 20. Re1 {[%clk 0:06:25]}  Qf5 {[%clk 0:07:54]} 21. Bc6 {[%clk 0:04:23]}  Rd8 {[%clk 0:07:05]} 22. Qc5+ {[%clk 0:03:59]}  Kf6 {[%clk 0:06:47]} 23. Qxd4+ {[%clk 0:04:00]}  e5 {[%clk 0:06:48]} 24. Qe4 {[%clk 0:03:08]}  Nf4 {[%clk 0:06:40]} 25. h4 {[%clk 0:02:51]}  Rd4 {[%clk 0:06:29]} 26. Qxf5+ {[%clk 0:02:46]}  Kxf5 {[%clk 0:06:31]} 27. Be4+ {[%clk 0:01:55]}  Ke6 {[%clk 0:06:25]} 28. Kg1 {[%clk 0:01:41]}  Be7 {[%clk 0:06:18]} 29. h5 {[%clk 0:01:05]}  f5 {[%clk 0:06:08]} 30. Bc2 {[%clk 0:01:05]}  Rc8 {[%clk 0:06:04]} 31. Bb3+ {[%clk 0:01:05]}  Kf6 {[%clk 0:06:06]} 32. Kh2 {[%clk 0:01:00]}  Nxh5 {[%clk 0:06:03]} 33. Rc1 {[%clk 0:00:57]}  Rh4+ {[%clk 0:06:02]} 34. Kg2 {[%clk 0:00:56]}  Nf4+ {[%clk 0:06:01]} 35. Kg3 {[%clk 0:00:58]}  Rxc1 {[%clk 0:05:57]} 36. Rxh4 {[%clk 0:00:55]}  Kg6 {[%clk 0:05:51]} 0-1


[Site "Internet"]

[Event "Chessable Masters - Torneo preliminare"]
[White "Iskusnyh, Sergei"]
[Black "Sasikiran, Krishnan"]
[WhiteFideId "4120027"]
[BlackFideId "5004985"]
[WhiteElo "2345"]
[BlackElo "2559"]
[Result "0-1"]
[Round "7"]
[TimeControl "600+2"]
[Date "2023.03.13"]
[WhiteClock "0:00:14"]
[BlackClock "0:02:30"]

1. d4 {[%clk 0:10:01]}  Nf6 {[%clk 0:10:00]} 2. c4 {[%clk 0:10:02]}  e6 {[%clk 0:10:01]} 3. g3 {[%clk 0:10:02]}  Bb4+ {[%clk 0:09:58]} 4. Bd2 {[%clk 0:10:02]}  Be7 {[%clk 0:09:59]} 5. Bg2 {[%clk 0:10:03]}  d5 {[%clk 0:10:00]} 6. Nf3 {[%clk 0:10:03]}  O-O {[%clk 0:10:01]} 7. O-O {[%clk 0:10:02]}  c6 {[%clk 0:10:02]} 8. Qc2 {[%clk 0:10:03]}  Nbd7 {[%clk 0:10:03]} 9. a3 {[%clk 0:09:53]}  b6 {[%clk 0:09:58]} 10. cxd5 {[%clk 0:09:54]}  cxd5 {[%clk 0:09:57]} 11. Bb4 {[%clk 0:09:55]}  a5 {[%clk 0:09:34]} 12. Bxe7 {[%clk 0:09:55]}  Qxe7 {[%clk 0:09:34]} 13. Nc3 {[%clk 0:09:54]}  Ba6 {[%clk 0:09:35]} 14. Rfc1 {[%clk 0:09:55]}  Rfc8 {[%clk 0:09:35]} 15. Qd1 {[%clk 0:09:51]}  b5 {[%clk 0:09:20]} 16. e3 {[%clk 0:09:42]}  b4 {[%clk 0:09:13]} 17. axb4 {[%clk 0:08:20]}  Qxb4 {[%clk 0:08:57]} 18. Rcb1 {[%clk 0:07:42]}  h6 {[%clk 0:08:33]} 19. Nd2 {[%clk 0:07:39]}  Bd3 {[%clk 0:08:17]} 20. Rc1 {[%clk 0:06:52]}  Qxb2 {[%clk 0:07:59]} 21. Na4 {[%clk 0:06:37]}  Qb4 {[%clk 0:07:13]} 22. Bf1 {[%clk 0:05:48]}  Bg6 {[%clk 0:06:23]} 23. f3 {[%clk 0:04:45]}  e5 {[%clk 0:06:03]} 24. dxe5 {[%clk 0:03:29]}  Nxe5 {[%clk 0:06:01]} 25. Kf2 {[%clk 0:03:24]}  h5 {[%clk 0:04:43]} 26. h3 {[%clk 0:03:14]}  h4 {[%clk 0:04:01]} 27. g4 {[%clk 0:03:14]}  d4 {[%clk 0:04:03]} 28. e4 {[%clk 0:03:12]}  d3 {[%clk 0:04:04]} 29. Kg2 {[%clk 0:02:48]}  Qd4 {[%clk 0:03:36]} 30. Ra2 {[%clk 0:01:11]}  Nxe4 {[%clk 0:02:31]} 31. fxe4 {[%clk 0:01:00]}  Bxe4+ {[%clk 0:02:31]} 32. Nxe4 {[%clk 0:00:14]}  Qxe4+ {[%clk 0:02:30]} 0-1


[Site "Internet"]

[Event "Chessable Masters - Torneo preliminare"]
[White "Girya, Olga"]
[Black "Nigmatov, Ortik"]
[WhiteFideId "4195752"]
[BlackFideId "14202131"]
[WhiteElo "2327"]
[BlackElo "2344"]
[Result "0-1"]
[Round "7"]
[TimeControl "600+2"]
[Date "2023.03.13"]
[WhiteClock "0:00:07"]
[BlackClock "0:01:33"]

1. d4 {[%clk 0:10:01]}  Nf6 {[%clk 0:09:59]} 2. Nf3 {[%clk 0:10:02]}  e6 {[%clk 0:10:00]} 3. c4 {[%clk 0:10:03]}  d5 {[%clk 0:10:01]} 4. Nc3 {[%clk 0:10:03]}  Bb4 {[%clk 0:10:01]} 5. Qb3 {[%clk 0:09:41]}  c5 {[%clk 0:09:36]} 6. dxc5 {[%clk 0:09:42]}  Nc6 {[%clk 0:09:37]} 7. Bg5 {[%clk 0:09:40]}  d4 {[%clk 0:09:22]} 8. O-O-O {[%clk 0:09:22]}  h6 {[%clk 0:08:59]} 9. Bxf6 {[%clk 0:09:07]}  Qxf6 {[%clk 0:09:00]} 10. Nb5 {[%clk 0:08:03]}  O-O {[%clk 0:08:49]} 11. Nbxd4 {[%clk 0:07:44]}  Bxc5 {[%clk 0:08:50]} 12. Nxc6 {[%clk 0:06:03]}  bxc6 {[%clk 0:08:52]} 13. e3 {[%clk 0:06:04]}  e5 {[%clk 0:08:35]} 14. Bd3 {[%clk 0:05:47]}  Re8 {[%clk 0:07:36]} 15. Qc2 {[%clk 0:05:32]}  a5 {[%clk 0:07:33]} 16. Bh7+ {[%clk 0:04:29]}  Kh8 {[%clk 0:07:31]} 17. Be4 {[%clk 0:04:29]}  a4 {[%clk 0:07:31]} 18. a3 {[%clk 0:04:08]}  Ra6 {[%clk 0:06:02]} 19. h3 {[%clk 0:03:58]}  Be6 {[%clk 0:05:45]} 20. g4 {[%clk 0:03:55]}  Qe7 {[%clk 0:05:14]} 21. Nxe5 {[%clk 0:02:55]}  Bc8 {[%clk 0:05:09]} 22. Nxf7+ {[%clk 0:01:56]}  Qxf7 {[%clk 0:05:10]} 23. Bg6 {[%clk 0:01:57]}  Qe7 {[%clk 0:05:05]} 24. Bxe8 {[%clk 0:01:57]}  Qxe8 {[%clk 0:05:07]} 25. Rd2 {[%clk 0:01:41]}  Be6 {[%clk 0:04:32]} 26. Rhd1 {[%clk 0:01:24]}  Ra8 {[%clk 0:04:33]} 27. Qe4 {[%clk 0:01:24]}  Bf8 {[%clk 0:04:26]} 28. f4 {[%clk 0:00:55]}  Bf7 {[%clk 0:04:20]} 29. Qxe8 {[%clk 0:00:48]}  Rxe8 {[%clk 0:04:21]} 30. Rd8 {[%clk 0:00:49]}  Be7 {[%clk 0:03:55]} 31. Rxe8+ {[%clk 0:00:46]}  Bxe8 {[%clk 0:03:57]} 32. Rd4 {[%clk 0:00:26]}  Kg8 {[%clk 0:03:55]} 33. Kd2 {[%clk 0:00:22]}  Kf7 {[%clk 0:03:56]} 34. c5 {[%clk 0:00:22]}  Bxc5 {[%clk 0:03:42]} 35. Rxa4 {[%clk 0:00:23]}  Ke6 {[%clk 0:03:40]} 36. Re4+ {[%clk 0:00:24]}  Kd7 {[%clk 0:03:41]} 37. Rc4 {[%clk 0:00:25]}  Bb6 {[%clk 0:03:39]} 38. b4 {[%clk 0:00:24]}  Bf7 {[%clk 0:03:40]} 39. Rc3 {[%clk 0:00:24]}  Bd5 {[%clk 0:03:36]} 40. Kd3 {[%clk 0:00:24]}  Bg2 {[%clk 0:03:35]} 41. h4 {[%clk 0:00:25]}  Bh3 {[%clk 0:03:28]} 42. g5 {[%clk 0:00:26]}  h5 {[%clk 0:03:29]} 43. Ke4 {[%clk 0:00:24]}  g6 {[%clk 0:03:27]} 44. a4 {[%clk 0:00:23]}  Kd6 {[%clk 0:03:05]} 45. a5 {[%clk 0:00:24]}  Bg2+ {[%clk 0:03:03]} 46. Kd3 {[%clk 0:00:25]}  Bc7 {[%clk 0:03:04]} 47. e4 {[%clk 0:00:21]}  Kd7 {[%clk 0:03:02]} 48. Ke3 {[%clk 0:00:22]}  Bf1 {[%clk 0:03:00]} 49. Rc1 {[%clk 0:00:22]}  Bb5 {[%clk 0:02:59]} 50. f5 {[%clk 0:00:18]}  gxf5 {[%clk 0:02:56]} 51. exf5 {[%clk 0:00:20]}  Bg3 {[%clk 0:02:51]} 52. g6 {[%clk 0:00:16]}  Ke7 {[%clk 0:02:52]} 53. Kf3 {[%clk 0:00:13]}  Bxh4 {[%clk 0:02:46]} 54. Rh1 {[%clk 0:00:14]}  Bf6 {[%clk 0:02:34]} 55. Rxh5 {[%clk 0:00:15]}  Bg7 {[%clk 0:02:36]} 56. Rh7 {[%clk 0:00:16]}  Kf6 {[%clk 0:02:37]} 57. Ke4 {[%clk 0:00:15]}  Ba6 {[%clk 0:02:37]} 58. Rh3 {[%clk 0:00:15]}  Bf8 {[%clk 0:02:36]} 59. Rc3 {[%clk 0:00:14]}  Bb7 {[%clk 0:02:19]} 60. a6 {[%clk 0:00:15]}  Ba8 {[%clk 0:02:21]} 61. Rc5 {[%clk 0:00:11]}  Bd6 {[%clk 0:02:11]} 62. Kd4 {[%clk 0:00:12]}  Bf8 {[%clk 0:02:07]} 63. Re5 {[%clk 0:00:12]}  Bxb4 {[%clk 0:02:01]} 64. Re6+ {[%clk 0:00:13]}  Kg7 {[%clk 0:01:31]} 65. Re7+ {[%clk 0:00:14]}  Bxe7 {[%clk 0:01:32]} 66. Kc4 {[%clk 0:00:07]}  Kf6 {[%clk 0:01:31]} 67. Kd4 {[%clk 0:00:06]}  Bf8 {[%clk 0:01:32]} 68. Kc4 {[%clk 0:00:07]}  Kxf5 {[%clk 0:01:33]} 0-1


[Site "Internet"]

[Event "Chessable Masters - Torneo preliminare"]
[White "Larino Nieto, David"]
[Black "Hambleton, Aman"]
[WhiteFideId "2256444"]
[BlackFideId "2606577"]
[WhiteElo "2496"]
[BlackElo "2447"]
[Result "1-0"]
[Round "7"]
[TimeControl "600+2"]
[Date "2023.03.13"]
[WhiteClock "0:04:20"]
[BlackClock "0:00:04"]

1. e4 {[%clk 0:09:47]}  e6 {[%clk 0:09:56]} 2. d4 {[%clk 0:09:44]}  d5 {[%clk 0:09:56]} 3. Nd2 {[%clk 0:09:46]}  h6 {[%clk 0:09:56]} 4. Ngf3 {[%clk 0:09:46]}  Nf6 {[%clk 0:09:56]} 5. Bd3 {[%clk 0:09:42]}  c5 {[%clk 0:09:55]} 6. e5 {[%clk 0:09:36]}  Nfd7 {[%clk 0:09:56]} 7. c3 {[%clk 0:09:37]}  Nc6 {[%clk 0:09:53]} 8. b3 {[%clk 0:09:30]}  g5 {[%clk 0:07:26]} 9. h3 {[%clk 0:09:22]}  Qb6 {[%clk 0:05:34]} 10. Bb2 {[%clk 0:09:21]}  Rg8 {[%clk 0:03:15]} 11. g4 {[%clk 0:09:06]}  cxd4 {[%clk 0:02:24]} 12. cxd4 {[%clk 0:09:05]}  Be7 {[%clk 0:02:25]} 13. Qe2 {[%clk 0:08:49]}  Nf8 {[%clk 0:02:25]} 14. a3 {[%clk 0:08:35]}  Ng6 {[%clk 0:01:52]} 15. Bxg6 {[%clk 0:08:37]}  Rxg6 {[%clk 0:01:54]} 16. b4 {[%clk 0:08:31]}  Bd7 {[%clk 0:01:53]} 17. Nb3 {[%clk 0:07:58]}  Nb8 {[%clk 0:00:07]} 18. Nc5 {[%clk 0:07:46]}  Bb5 {[%clk 0:00:06]} 19. Qe3 {[%clk 0:07:47]}  Nd7 {[%clk 0:00:05]} 20. Nd2 {[%clk 0:07:44]}  Nxc5 {[%clk 0:00:03]} 21. dxc5 {[%clk 0:07:45]}  Qc7 {[%clk 0:00:04]} 22. a4 {[%clk 0:07:41]}  d4 {[%clk 0:00:05]} 23. Bxd4 {[%clk 0:07:27]}  Bc6 {[%clk 0:00:05]} 24. f3 {[%clk 0:07:28]}  a6 {[%clk 0:00:02]} 25. Nc4 {[%clk 0:07:20]}  Rd8 {[%clk 0:00:04]} 26. Nd6+ {[%clk 0:07:21]}  Kf8 {[%clk 0:00:05]} 27. Kf2 {[%clk 0:07:10]}  Bd5 {[%clk 0:00:06]} 28. Rhc1 {[%clk 0:07:05]}  Kg8 {[%clk 0:00:07]} 29. b5 {[%clk 0:06:52]}  axb5 {[%clk 0:00:09]} 30. axb5 {[%clk 0:06:53]}  Qb8 {[%clk 0:00:04]} 31. c6 {[%clk 0:05:55]}  Bxd6 {[%clk 0:00:05]} 32. exd6 {[%clk 0:05:57]}  bxc6 {[%clk 0:00:05]} 33. bxc6 {[%clk 0:05:50]}  Qxd6 {[%clk 0:00:07]} 34. Be5 {[%clk 0:05:48]}  Qf8 {[%clk 0:00:06]} 35. c7 {[%clk 0:05:42]}  Rc8 {[%clk 0:00:08]} 36. Ra6 {[%clk 0:05:20]}  f6 {[%clk 0:00:07]} 37. Bd6 {[%clk 0:05:21]}  Qf7 {[%clk 0:00:04]} 38. Rb6 {[%clk 0:05:23]}  Kh7 {[%clk 0:00:05]} 39. Qd3 {[%clk 0:05:12]}  f5 {[%clk 0:00:03]} 40. Rb8 {[%clk 0:05:06]}  Rgg8 {[%clk 0:00:03]} 41. Be5 {[%clk 0:04:51]}  Kg6 {[%clk 0:00:03]} 42. Rcb1 {[%clk 0:04:42]}  Bc6 {[%clk 0:00:03]} 43. R1b6 {[%clk 0:04:29]}  Qd7 {[%clk 0:00:03]} 44. gxf5+ {[%clk 0:04:27]}  Kf7 {[%clk 0:00:03]} 45. fxe6+ {[%clk 0:04:23]}  Qxe6 {[%clk 0:00:04]} 46. Qh7+ {[%clk 0:04:19]}  Ke8 {[%clk 0:00:04]} 47. Rxc8+ {[%clk 0:04:20]} 1-0


[Site "Internet"]

[Event "Chessable Masters - Torneo preliminare"]
[White "Santos Ruiz, Miguel"]
[Black "Raja, Rithvik R"]
[WhiteFideId "22291482"]
[BlackFideId "35007394"]
[WhiteElo "2491"]
[BlackElo "2387"]
[Result "1-0"]
[Round "7"]
[TimeControl "600+2"]
[Date "2023.03.13"]
[WhiteClock "0:06:10"]
[BlackClock "0:01:59"]

1. e4 {[%clk 0:10:01]}  c5 {[%clk 0:09:56]} 2. Nf3 {[%clk 0:09:58]}  d6 {[%clk 0:09:58]} 3. d4 {[%clk 0:09:59]}  cxd4 {[%clk 0:09:59]} 4. Nxd4 {[%clk 0:10:01]}  Nf6 {[%clk 0:10:01]} 5. Nc3 {[%clk 0:10:02]}  a6 {[%clk 0:10:03]} 6. Be2 {[%clk 0:10:02]}  e5 {[%clk 0:10:03]} 7. Nb3 {[%clk 0:10:03]}  Be7 {[%clk 0:10:05]} 8. Be3 {[%clk 0:10:03]}  Be6 {[%clk 0:10:07]} 9. Nd5 {[%clk 0:10:04]}  Nbd7 {[%clk 0:10:07]} 10. Qd3 {[%clk 0:10:05]}  O-O {[%clk 0:10:03]} 11. O-O {[%clk 0:10:06]}  Bxd5 {[%clk 0:09:52]} 12. exd5 {[%clk 0:10:07]}  Ne8 {[%clk 0:09:54]} 13. a4 {[%clk 0:10:07]}  f5 {[%clk 0:09:50]} 14. a5 {[%clk 0:10:04]}  Rc8 {[%clk 0:09:38]} 15. f4 {[%clk 0:10:01]}  g6 {[%clk 0:09:24]} 16. Qd2 {[%clk 0:09:58]}  Nef6 {[%clk 0:08:42]} 17. c4 {[%clk 0:09:58]}  Ne4 {[%clk 0:08:41]} 18. Qb4 {[%clk 0:09:59]}  Rc7 {[%clk 0:07:30]} 19. Rad1 {[%clk 0:09:45]}  Ndc5 {[%clk 0:07:17]} 20. Nxc5 {[%clk 0:09:43]}  dxc5 {[%clk 0:07:07]} 21. Qb6 {[%clk 0:09:42]}  Rf6 {[%clk 0:06:44]} 22. Qb3 {[%clk 0:09:28]}  exf4 {[%clk 0:06:18]} 23. Bxf4 {[%clk 0:09:27]}  Bd6 {[%clk 0:06:19]} 24. Bd3 {[%clk 0:09:15]}  Bxf4 {[%clk 0:06:16]} 25. Rxf4 {[%clk 0:09:15]}  Nd6 {[%clk 0:06:16]} 26. Re1 {[%clk 0:09:14]}  Re7 {[%clk 0:06:13]} 27. Qc3 {[%clk 0:09:02]}  Rf8 {[%clk 0:05:54]} 28. Rff1 {[%clk 0:08:29]}  Rfe8 {[%clk 0:05:47]} 29. b4 {[%clk 0:08:28]}  Qc7 {[%clk 0:05:18]} 30. Kh1 {[%clk 0:07:58]}  Re3 {[%clk 0:04:37]} 31. Rxe3 {[%clk 0:07:38]}  Rxe3 {[%clk 0:04:39]} 32. Qd2 {[%clk 0:07:39]}  Re5 {[%clk 0:04:18]} 33. h3 {[%clk 0:07:22]}  cxb4 {[%clk 0:03:19]} 34. Qxb4 {[%clk 0:07:22]}  Re3 {[%clk 0:03:21]} 35. c5 {[%clk 0:07:11]}  Rxd3 {[%clk 0:02:54]} 36. cxd6 {[%clk 0:07:12]}  Qf7 {[%clk 0:02:49]} 37. Rc1 {[%clk 0:06:36]}  Qxd5 {[%clk 0:02:46]} 38. Rc8+ {[%clk 0:06:08]}  Kf7 {[%clk 0:02:20]} 39. Rc7+ {[%clk 0:06:08]}  Ke6 {[%clk 0:02:14]} 40. Re7+ {[%clk 0:06:06]}  Kf6 {[%clk 0:02:15]} 41. Qh4+ {[%clk 0:06:08]}  g5 {[%clk 0:01:59]} 42. Qh6# {[%clk 0:06:10]} 1-0


[Site "Internet"]

[Event "Chessable Masters - Torneo preliminare"]
[White "Pranav, V"]
[Black "Flores, Diego"]
[WhiteFideId "25060783"]
[BlackFideId "108049"]
[WhiteElo "2462"]
[BlackElo "2598"]
[Result "0-1"]
[Round "7"]
[TimeControl "600+2"]
[Date "2023.03.13"]
[WhiteClock "0:00:03"]
[BlackClock "0:00:49"]

1. e4 {[%clk 0:10:01]}  c5 {[%clk 0:09:57]} 2. Nf3 {[%clk 0:10:01]}  e6 {[%clk 0:09:58]} 3. d4 {[%clk 0:09:59]}  cxd4 {[%clk 0:09:58]} 4. Nxd4 {[%clk 0:10:01]}  a6 {[%clk 0:09:59]} 5. Nc3 {[%clk 0:10:01]}  b5 {[%clk 0:10:00]} 6. Bd3 {[%clk 0:10:02]}  Qb6 {[%clk 0:10:01]} 7. Nb3 {[%clk 0:10:01]}  Qc7 {[%clk 0:10:01]} 8. O-O {[%clk 0:10:00]}  Bb7 {[%clk 0:10:03]} 9. Re1 {[%clk 0:09:59]}  b4 {[%clk 0:09:43]} 10. Ne2 {[%clk 0:09:56]}  Nf6 {[%clk 0:09:43]} 11. Ned4 {[%clk 0:09:41]}  Bd6 {[%clk 0:09:10]} 12. h3 {[%clk 0:09:40]}  Nc6 {[%clk 0:09:10]} 13. Nxc6 {[%clk 0:09:30]}  Bxc6 {[%clk 0:09:08]} 14. Qe2 {[%clk 0:09:29]}  Bh2+ {[%clk 0:08:13]} 15. Kh1 {[%clk 0:09:02]}  Bf4 {[%clk 0:07:54]} 16. Bxf4 {[%clk 0:08:43]}  Qxf4 {[%clk 0:07:55]} 17. Na5 {[%clk 0:08:45]}  Bb5 {[%clk 0:07:28]} 18. Kg1 {[%clk 0:08:10]}  O-O {[%clk 0:06:51]} 19. Nb3 {[%clk 0:07:20]}  Rfc8 {[%clk 0:06:35]} 20. Nd4 {[%clk 0:06:03]}  Bxd3 {[%clk 0:06:25]} 21. Qxd3 {[%clk 0:05:48]}  d5 {[%clk 0:06:15]} 22. exd5 {[%clk 0:05:48]}  Nxd5 {[%clk 0:06:13]} 23. Re4 {[%clk 0:05:50]}  Qc7 {[%clk 0:06:00]} 24. a3 {[%clk 0:03:56]}  Rab8 {[%clk 0:05:31]} 25. axb4 {[%clk 0:03:04]}  Nxb4 {[%clk 0:05:27]} 26. Qd2 {[%clk 0:03:00]}  Nxc2 {[%clk 0:05:11]} 27. Rc1 {[%clk 0:02:11]}  Qb7 {[%clk 0:05:11]} 28. Rg4 {[%clk 0:02:11]}  Nxd4 {[%clk 0:05:03]} 29. Rxc8+ {[%clk 0:02:12]}  Qxc8 {[%clk 0:04:37]} 30. Rxd4 {[%clk 0:02:08]}  g6 {[%clk 0:04:12]} 31. b4 {[%clk 0:02:06]}  Qc7 {[%clk 0:04:01]} 32. h4 {[%clk 0:02:06]}  h5 {[%clk 0:03:53]} 33. g3 {[%clk 0:02:06]}  Rc8 {[%clk 0:02:41]} 34. Kh2 {[%clk 0:01:59]}  Qe7 {[%clk 0:02:31]} 35. Qe2 {[%clk 0:01:47]}  Qf6 {[%clk 0:02:27]} 36. Rf4 {[%clk 0:01:39]}  Qa1 {[%clk 0:02:21]} 37. Qe4 {[%clk 0:01:38]}  Rc7 {[%clk 0:01:49]} 38. Qa8+ {[%clk 0:01:22]}  Kg7 {[%clk 0:01:50]} 39. b5 {[%clk 0:01:23]}  e5 {[%clk 0:01:43]} 40. b6 {[%clk 0:00:31]}  Rc2 {[%clk 0:01:13]} 41. Rf3 {[%clk 0:00:10]}  Qd4 {[%clk 0:00:58]} 42. Qb7 {[%clk 0:00:02]}  Rxf2+ {[%clk 0:00:57]} 43. Rxf2 {[%clk 0:00:04]}  Qxf2+ {[%clk 0:00:59]} 44. Kh3 {[%clk 0:00:05]}  e4 {[%clk 0:00:55]} 45. Qc7 {[%clk 0:00:05]}  Qg1 {[%clk 0:00:48]} 46. Qe5+ {[%clk 0:00:03]}  Kh7 {[%clk 0:00:49]} 0-1


[Site "Internet"]

[Event "Chessable Masters - Torneo preliminare"]
[White "Shyam, Sundar M."]
[Black "Rustemov, Alexander"]
[WhiteFideId "5019141"]
[BlackFideId "4119002"]
[WhiteElo "2464"]
[BlackElo "2494"]
[Result "1-0"]
[Round "7"]
[TimeControl "600+2"]
[Date "2023.03.13"]
[WhiteClock "0:04:56"]
[BlackClock "0:00:59"]

1. d4 {[%clk 0:10:01]}  g6 {[%clk 0:09:49]} 2. e4 {[%clk 0:10:01]}  Bg7 {[%clk 0:09:49]} 3. Nf3 {[%clk 0:10:02]}  d6 {[%clk 0:09:49]} 4. c3 {[%clk 0:10:04]}  Nf6 {[%clk 0:09:49]} 5. Bd3 {[%clk 0:10:05]}  O-O {[%clk 0:09:49]} 6. O-O {[%clk 0:10:07]}  Bg4 {[%clk 0:09:49]} 7. Nbd2 {[%clk 0:10:04]}  Nfd7 {[%clk 0:09:47]} 8. h3 {[%clk 0:10:05]}  Bxf3 {[%clk 0:09:48]} 9. Nxf3 {[%clk 0:10:07]}  c5 {[%clk 0:09:49]} 10. d5 {[%clk 0:10:04]}  Na6 {[%clk 0:09:42]} 11. a4 {[%clk 0:09:57]}  Nc7 {[%clk 0:09:42]} 12. Bg5 {[%clk 0:09:50]}  b6 {[%clk 0:09:37]} 13. Qd2 {[%clk 0:09:49]}  a6 {[%clk 0:09:37]} 14. Rfe1 {[%clk 0:08:51]}  Re8 {[%clk 0:09:22]} 15. c4 {[%clk 0:08:45]}  Rb8 {[%clk 0:09:19]} 16. Qe2 {[%clk 0:08:46]}  Ne5 {[%clk 0:08:23]} 17. Nxe5 {[%clk 0:08:45]}  Bxe5 {[%clk 0:08:25]} 18. f4 {[%clk 0:07:47]}  Bd4+ {[%clk 0:08:25]} 19. Kh1 {[%clk 0:07:48]}  Qd7 {[%clk 0:08:25]} 20. e5 {[%clk 0:07:49]}  e6 {[%clk 0:07:58]} 21. Qg4 {[%clk 0:05:39]}  h5 {[%clk 0:07:06]} 22. Qg3 {[%clk 0:05:38]}  dxe5 {[%clk 0:06:46]} 23. fxe5 {[%clk 0:05:33]}  exd5 {[%clk 0:06:47]} 24. Bf6 {[%clk 0:05:33]}  dxc4 {[%clk 0:06:15]} 25. Bxg6 {[%clk 0:05:26]}  fxg6 {[%clk 0:04:38]} 26. Qxg6+ {[%clk 0:05:27]}  Kf8 {[%clk 0:04:39]} 27. Rf1 {[%clk 0:05:10]}  Re7 {[%clk 0:01:37]} 28. Bxe7+ {[%clk 0:05:09]}  Kxe7 {[%clk 0:01:38]} 29. Rf7+ {[%clk 0:05:11]}  Kd8 {[%clk 0:01:37]} 30. Rxd7+ {[%clk 0:05:05]}  Kxd7 {[%clk 0:01:38]} 31. Qd6+ {[%clk 0:05:02]}  Kc8 {[%clk 0:01:38]} 32. Rf1 {[%clk 0:05:02]}  Kb7 {[%clk 0:01:37]} 33. Rf7 {[%clk 0:05:03]}  Rc8 {[%clk 0:01:38]} 34. e6 {[%clk 0:05:04]}  Bxb2 {[%clk 0:01:39]} 35. e7 {[%clk 0:05:02]}  Re8 {[%clk 0:01:39]} 36. Rf8 {[%clk 0:04:59]}  c3 {[%clk 0:01:09]} 37. Rxe8 {[%clk 0:04:55]}  c2 {[%clk 0:01:10]} 38. Rb8+ {[%clk 0:04:56]}  Kxb8 {[%clk 0:00:59]} 39. e8=Q+ {[%clk 0:04:56]}  Kb7 {[%clk 0:01:00]} 40. Qe4+ {[%clk 0:04:57]}  Kc8 {[%clk 0:00:59]} 41. Qxc2 {[%clk 0:04:56]} 1-0


[Site "Internet"]

[Event "Chessable Masters - Torneo preliminare"]
[White "Jonkman, Harmen"]
[Black "Sattarov, Bobir"]
[WhiteFideId "1002708"]
[BlackFideId "14203081"]
[WhiteElo "2351"]
[BlackElo "2333"]
[Result "0-1"]
[Round "7"]
[TimeControl "600+2"]
[Date "2023.03.13"]
[WhiteClock "0:00:04"]
[BlackClock "0:02:03"]

1. d4 {[%clk 0:09:54]}  Nf6 {[%clk 0:10:00]} 2. Bf4 {[%clk 0:09:52]}  d5 {[%clk 0:10:01]} 3. e3 {[%clk 0:09:49]}  c5 {[%clk 0:10:01]} 4. Nf3 {[%clk 0:09:44]}  Nc6 {[%clk 0:10:01]} 5. Nbd2 {[%clk 0:09:35]}  Qb6 {[%clk 0:09:58]} 6. dxc5 {[%clk 0:09:16]}  Qxb2 {[%clk 0:09:58]} 7. Rb1 {[%clk 0:08:49]}  Qa3 {[%clk 0:09:50]} 8. Nb3 {[%clk 0:08:40]}  e6 {[%clk 0:09:49]} 9. Bb5 {[%clk 0:08:35]}  Bxc5 {[%clk 0:09:44]} 10. Nxc5 {[%clk 0:08:13]}  Qxc5 {[%clk 0:09:46]} 11. O-O {[%clk 0:08:11]}  O-O {[%clk 0:09:46]} 12. c4 {[%clk 0:07:53]}  a6 {[%clk 0:09:42]} 13. cxd5 {[%clk 0:07:49]}  Nxd5 {[%clk 0:09:23]} 14. Bxc6 {[%clk 0:07:27]}  Nxf4 {[%clk 0:09:20]} 15. Bxb7 {[%clk 0:06:59]}  Bxb7 {[%clk 0:09:20]} 16. Rxb7 {[%clk 0:07:00]}  Nd5 {[%clk 0:09:21]} 17. Qb1 {[%clk 0:06:38]}  Nc3 {[%clk 0:08:59]} 18. Qb3 {[%clk 0:06:15]}  a5 {[%clk 0:08:46]} 19. Nd4 {[%clk 0:05:57]}  a4 {[%clk 0:08:43]} 20. Qc2 {[%clk 0:05:13]}  Rfc8 {[%clk 0:08:39]} 21. h3 {[%clk 0:04:30]}  Qd5 {[%clk 0:08:27]} 22. Rb2 {[%clk 0:04:07]}  g6 {[%clk 0:08:25]} 23. Ra1 {[%clk 0:03:43]}  e5 {[%clk 0:08:17]} 24. Nf3 {[%clk 0:03:41]}  Nxa2 {[%clk 0:08:07]} 25. Qe2 {[%clk 0:02:36]}  Nc3 {[%clk 0:07:53]} 26. Qe1 {[%clk 0:02:36]}  Rc5 {[%clk 0:07:27]} 27. Rc2 {[%clk 0:02:17]}  Qb3 {[%clk 0:07:17]} 28. Rac1 {[%clk 0:01:37]}  Rac8 {[%clk 0:07:13]} 29. Kh2 {[%clk 0:01:26]}  f6 {[%clk 0:06:58]} 30. Nd2 {[%clk 0:01:15]}  Qd5 {[%clk 0:06:45]} 31. Nb1 {[%clk 0:00:56]}  Ne4 {[%clk 0:06:04]} 32. Rxc5 {[%clk 0:00:53]}  Rxc5 {[%clk 0:06:06]} 33. Rxc5 {[%clk 0:00:45]}  Qxc5 {[%clk 0:06:08]} 34. Qd1 {[%clk 0:00:43]}  Nxf2 {[%clk 0:03:52]} 35. Qxa4 {[%clk 0:00:42]}  f5 {[%clk 0:03:41]} 36. Qb3+ {[%clk 0:00:28]}  Kg7 {[%clk 0:03:40]} 37. Nd2 {[%clk 0:00:28]}  e4 {[%clk 0:03:26]} 38. Qe6 {[%clk 0:00:09]}  Nd3 {[%clk 0:03:23]} 39. Nc4 {[%clk 0:00:09]}  Qc7+ {[%clk 0:03:21]} 40. Nd6 {[%clk 0:00:09]}  Qa7 {[%clk 0:02:41]} 41. h4 {[%clk 0:00:04]}  Qxe3 {[%clk 0:02:02]} 42. Qe7+ {[%clk 0:00:04]}  Kh6 {[%clk 0:02:03]} 0-1


[Site "Internet"]